fUST/lending_fUST_20250227
["ID","MTS","AMOUNT","RATE_DAILY","PERIOD"]
[354609780,1740595895330,-511.43,0.0005452,120]
[354609782,1740595895339,-163172.77,0.0005452,7]
[354609784,1740595895351,-567.25,0.0005452,120]
[354609786,1740595895360,-4605.54,0.0005452,120]
[354609788,1740595895370,-884.36,0.0005452,120]
[354609790,1740595895380,-573.56,0.0005452,120]
[354609792,1740595895390,-1964.79,0.0005452,120]
[354609794,1740595895400,-29115.5,0.0005452,120]
[354609796,1740595895411,-644.01,0.0005452,120]
[354609798,1740595895421,-1853.52,0.0005452,120]
[354609800,1740595895431,-500.0,0.0005452,120]
[354609802,1740595895440,-627.73,0.0005452,120]
[354609804,1740595895451,-1150.38,0.0005452,120]
[354609806,1740595895461,-8691.74,0.0005452,120]
[354609808,1740595895471,-820.33,0.0005452,120]
[354609810,1740595895480,-1232.27,0.0005452,120]
[354609813,1740595895490,-8198.21,0.0005452,120]
[354609814,1740595895500,-1218.92,0.0005452,120]
[354609817,1740595895511,-1991.01,0.0005452,120]
[354609819,1740595895521,-200.0,0.0005452,7]
[354609821,1740595895530,-820.98,0.0005452,120]
[354609823,1740595895540,-555.9,0.0005452,120]
[354609825,1740595895549,-35881.26,0.0005452,120]
[354609827,1740595895559,-1000.0,0.0005452,2]
[354609829,1740595895569,-2923.8,0.0005452,120]
[354609831,1740595895578,-949.77,0.0005452,120]
[354609833,1740595895587,-500.0,0.0005452,120]
[354609835,1740595895597,-14356.2,0.0005452,120]
[354609837,1740595895607,-689.35,0.0005452,120]
[354609839,1740595895616,-853.36,0.0005452,120]
[354609841,1740595895626,-4865.11,0.0005452,120]
[354609843,1740595895635,-2475.11,0.0005452,120]
[354609845,1740595895644,-2671.56,0.0005452,120]
[354609847,1740595895654,-5089.13,0.0005452,120]
[354609849,1740595895665,-514.99,0.0005452,120]
[354609851,1740595895675,-44424.48,0.0005452,6]
[354609853,1740595895684,-306.6489197,0.0005452,120]
[354609855,1740595895693,-520.61,0.0005452,120]
[354609857,1740595895702,-1173.4,0.0005452,120]
[354609859,1740595895711,-500.0,0.0005452,120]
[354609861,1740595895720,-3489.83,0.0005452,120]
[354609863,1740595895730,-1066.43,0.0005452,120]
[354609865,1740595895740,-1957.38,0.0005452,120]
[354609867,1740595895749,-500.0,0.0005452,120]
[354609869,1740595895759,-2424.79,0.0005452,120]
[354609871,1740595895768,-21424.0,0.0005452,120]
[354609873,1740595895778,-519.69,0.0005452,120]
[354609875,1740595895787,-526.05,0.0005452,120]
[354609877,1740595895797,-1666.71,0.0005452,120]
[354609879,1740595895807,-3965.85,0.0005452,120]
[354609881,1740595895816,-500.0,0.0005452,120]
[354609883,1740595895826,-788.51,0.0005452,120]
[354609885,1740595895837,-1619.69,0.0005452,120]
[354609887,1740595895848,-1722.02,0.0005452,120]
[354609889,1740595895858,-4778.1,0.0005452,120]
[354609891,1740595895868,-2593.09,0.0005452,120]
[354609893,1740595895877,-1690.26,0.0005452,120]
[354609895,1740595895887,-812.11,0.0005452,120]
[354609897,1740595895896,-710.16,0.0005452,120]
[354609899,1740595895905,-1536.25,0.0005452,120]
[354609901,1740595895915,-626.19,0.0005452,120]
[354609903,1740595895925,-541.13,0.0005452,120]
[354609905,1740595895935,-512.95,0.0005452,120]
[354609907,1740595895948,-1851.36,0.0005452,120]
[354609909,1740595895957,-662.82,0.0005452,120]
[354609911,1740595895966,-10264.39,0.0005452,120]
[354609913,1740595895976,-810.19,0.0005452,120]
[354609915,1740595895987,-991.77,0.0005452,120]
[354609917,1740595895999,-3331.35,0.0005452,120]
[354609919,1740595896011,-151.0,0.0005452,120]
[354609921,1740595896020,-5881.5,0.0005452,120]
[354609923,1740595896031,-1213.93,0.0005452,120]
[354609925,1740595896040,-2374.13,0.0005452,120]
[354609927,1740595896049,-2465.59,0.0005452,120]
[354609929,1740595896059,-500.0,0.0005452,120]
[354609931,1740595896068,-782.08,0.0005452,120]
[354609933,1740595896078,-500.0,0.0005452,120]
[354609935,1740595896087,-1294.2,0.0005452,120]
[354609951,1740595896229,-7797.57,0.0005452,120]
[354609953,1740595896240,-253.6799471,0.00054548,30]
[354609955,1740595896250,-153.0,0.00054548,30]
[354609957,1740595896259,-153.0,0.00054548,30]
[354609959,1740595896269,-153.0,0.00054548,30]
[354609961,1740595896279,-153.0,0.00054548,30]
[354609963,1740595896290,-153.0,0.00054548,30]
[354609965,1740595896299,-183.81059444,0.00054694,28]
[354609967,1740595896309,-20000.0,0.000547,120]
[354609969,1740595896318,-20000.0,0.000547,120]
[354609971,1740595896328,-504.40258443,0.00054746,60]
[354609973,1740595896337,-500.0,0.00054763,60]
[354609975,1740595896349,-5000.0,0.00054788,120]
[354609977,1740595896359,-9161.7891538,0.0005479,120]
[354609979,1740595896369,-500.0,0.0005479,60]
[354609981,1740595896378,-500.75593073,0.0005479,60]
[354609983,1740595896388,-500.0,0.00054794,30]
[354609985,1740595896397,-500.0,0.00054794,30]
[354609987,1740595896407,-502.0,0.00054794,120]
[354609989,1740595896417,-503.0,0.00054794,120]
[354609991,1740595896426,-1000.0,0.00054794,120]
[354609993,1740595896436,-2000.0,0.00054794,120]
[354609995,1740595896445,-2000.0,0.00054794,120]
[354609997,1740595896455,-2000.0,0.00054794,120]
[354610000,1740595896465,-2000.0,0.00054794,120]
[354610001,1740595896474,-2000.0,0.00054794,120]
[354610003,1740595896483,-2000.0,0.00054794,120]
[354610006,1740595896493,-2000.0,0.00054794,120]
[354610008,1740595896503,-2000.0,0.00054794,120]
[354610010,1740595896512,-2000.0,0.00054794,120]
[354610012,1740595896521,-2000.0,0.00054794,120]
[354610014,1740595896531,-2000.0,0.00054794,120]
[354610016,1740595896540,-500.0,0.00054794,120]
[354610018,1740595896549,-828.49,0.00054794,120]
[354610020,1740595896558,-500.0,0.00054794,120]
[354610022,1740595896567,-151.0,0.00054794,120]
[354610024,1740595896576,-410.24167117,0.00054794,120]
[354610026,1740595896586,-840.04,0.00054794,120]
[354610028,1740595896595,-300.0,0.00054794,120]
[354610030,1740595896604,-500.0,0.00054794,120]
[354610032,1740595896614,-388.955738,0.00054794,120]
[354610033,1740595896623,-799.37,0.00054794,120]
[354610035,1740595896632,-388.955738,0.00054794,120]
[354610037,1740595896641,-500.0,0.00054794,120]
[354610039,1740595896650,-500.0,0.00054794,120]
[354610041,1740595896660,-500.0,0.00054794,120]
[354610043,1740595896670,-526.23,0.00054794,120]
[354610045,1740595896679,-525.22,0.00054794,120]
[354610047,1740595896688,-500.0,0.00054794,120]
[354610049,1740595896698,-692.43,0.00054794,120]
[354610052,1740595896708,-566.11,0.00054794,14]
[354610054,1740595896717,-1177.15,0.00054794,120]
[354610056,1740595896726,-500.0,0.00054794,120]
[354610057,1740595896734,-500.0,0.00054794,120]
[354610059,1740595896744,-1194.96,0.00054794,120]
[354610061,1740595896753,-500.0,0.00054794,120]
[354610063,1740595896763,-1734.78,0.00054794,120]
[354610065,1740595896773,-151.0,0.00054794,120]
[354610067,1740595896782,-1448.26,0.00054794,120]
[354610069,1740595896792,-500.0,0.00054794,120]
[354610071,1740595896802,-500.0,0.00054794,120]
[354610073,1740595896811,-500.0,0.00054794,120]
[354610075,1740595896820,-772.59,0.00054794,120]
[354610078,1740595896830,-576.98,0.00054794,120]
[354610080,1740595896839,-599.45,0.00054794,120]
[354610082,1740595896851,-500.0,0.00054794,120]
[354610084,1740595896860,-312.16604964,0.00054794,120]
[354610086,1740595896870,-582.65,0.00054794,120]
[354610088,1740595896879,-500.0,0.00054794,120]
[354610090,1740595896889,-518.67,0.00054794,120]
[354610092,1740595896899,-524.39,0.00054794,120]
[354610094,1740595896909,-540.34,0.00054794,120]
[354610096,1740595896919,-707.66,0.00054794,120]
[354610098,1740595896929,-500.0,0.00054794,120]
[354610100,1740595896939,-879.42,0.00054794,120]
[354610102,1740595896952,-894.65,0.00054794,120]
[354610104,1740595896962,-500.0,0.00054794,120]
[354610106,1740595896971,-523.35,0.00054794,120]
[354610108,1740595896981,-500.0,0.00054794,120]
[354610110,1740595896994,-500.0,0.00054794,120]
[354610112,1740595897004,-500.0,0.00054794,120]
[354610114,1740595897013,-500.0,0.00054794,120]
[354610116,1740595897023,-630.3,0.00054794,120]
[354610118,1740595897032,-500.0,0.00054794,120]
[354610120,1740595897041,-500.0,0.00054794,120]
[354610122,1740595897051,-757.41,0.00054794,120]
[354610124,1740595897061,-618.62,0.00054794,120]
[354610126,1740595897071,-1759.91,0.00054794,120]
[354610128,1740595897081,-616.782814,0.00054794,120]
[354610130,1740595897091,-616.782821,0.00054794,120]
[354610131,1740595897102,-1105.48,0.00054794,120]
[354610133,1740595897112,-849.13,0.00054794,120]
[354610135,1740595897121,-500.0,0.00054794,120]
[354610137,1740595897131,-578.35,0.00054794,120]
[354610139,1740595897141,-827.78,0.00054794,120]
[354610142,1740595897152,-1260.45,0.00054794,120]
[354610144,1740595897162,-624.52,0.00054794,120]
[354610146,1740595897171,-1553.65,0.00054794,120]
[354610148,1740595897180,-515.01,0.00054794,120]
[354610150,1740595897190,-558.26,0.00054794,120]
[354610152,1740595897200,-500.0,0.00054794,120]
[354610154,1740595897209,-527.02,0.00054794,120]
[354610156,1740595897219,-700.01,0.00054794,120]
[354610158,1740595897228,-410.88262292,0.00054794,120]
[354610160,1740595897238,-444.575532,0.00054794,120]
[354610162,1740595897248,-751.69,0.00054794,120]
[354610164,1740595897258,-500.0,0.00054794,15]
[354610166,1740595897268,-444.575528,0.00054794,120]
[354610168,1740595897277,-1613.85,0.00054794,120]
[354610170,1740595897287,-1300.61,0.00054794,120]
[354610172,1740595897297,-667.88,0.00054794,120]
[354610174,1740595897307,-2143.47,0.00054794,120]
[354610176,1740595897316,-500.0,0.00054794,120]
[354610178,1740595897326,-872.97,0.00054794,120]
[354610180,1740595897337,-500.0,0.00054794,120]
[354610182,1740595897348,-1346.61,0.00054794,120]
[354610184,1740595897358,-2396.98,0.00054794,120]
[354610186,1740595897367,-500.0,0.00054794,120]
[354610188,1740595897378,-640.62,0.00054794,120]
[354610190,1740595897388,-1154.76,0.00054794,120]
[354610192,1740595897397,-500.0,0.00054794,120]
[354610194,1740595897406,-434.048086,0.00054794,120]
[354610196,1740595897415,-500.0,0.00054794,120]
[354610198,1740595897424,-500.0,0.00054794,120]
[354610200,1740595897433,-434.048087,0.00054794,120]
[354610202,1740595897443,-152.72388183,0.00054794,120]
[354610204,1740595897452,-500.0,0.00054794,120]
[354610206,1740595897461,-1463.13,0.00054794,120]
[354610208,1740595897471,-500.0,0.00054794,120]
[354610210,1740595897480,-2977.1,0.00054794,120]
[354610212,1740595897489,-3444.22,0.00054794,120]
[354610214,1740595897498,-1010.42,0.00054794,120]
[354610216,1740595897507,-522.19,0.00054794,30]
[354610218,1740595897516,-2884.86,0.00054794,120]
[354610220,1740595897525,-2884.86,0.00054794,120]
[354610222,1740595897535,-2884.86,0.00054794,120]
[354610224,1740595897544,-2884.86,0.00054794,120]
[354610226,1740595897553,-2884.86,0.00054794,120]
[354610228,1740595897563,-2884.86,0.00054794,120]
[354610230,1740595897572,-2884.86,0.00054794,120]
[354610232,1740595897582,-2884.86,0.00054794,120]
[354610234,1740595897591,-2884.86,0.00054794,120]
[354610236,1740595897602,-2884.86,0.00054794,120]
[354610238,1740595897611,-2884.86,0.00054794,120]
[354610240,1740595897620,-989.6,0.00054794,120]
[354610242,1740595897629,-968.128347,0.00054794,120]
[354610244,1740595897639,-1121.27,0.00054794,120]
[354610246,1740595897648,-500.0,0.00054794,120]
[354610248,1740595897657,-1101.44,0.00054794,120]
[354610250,1740595897666,-968.128344,0.00054794,120]
[354610252,1740595897676,-500.0,0.00054794,45]
[354610254,1740595897685,-1764.14,0.00054794,120]
[354610256,1740595897694,-588.25,0.00054794,120]
[354610258,1740595897703,-2377.1,0.00054794,120]
[354610260,1740595897713,-852.55,0.00054794,120]
[354610262,1740595897723,-161.6975,0.00054794,120]
[354610264,1740595897732,-500.0,0.00054794,120]
[354610266,1740595897742,-1100.79,0.00054794,120]
[354610268,1740595897750,-500.0,0.00054794,120]
[354610270,1740595897760,-1552.98,0.00054794,120]
[354610272,1740595897770,-500.0,0.00054794,120]
[354610274,1740595897780,-500.0,0.00054794,120]
[354610275,1740595897789,-543.36,0.00054794,120]
[354610276,1740595897798,-797.98,0.00054794,120]
[354610277,1740595897808,-951.27,0.00054794,120]
[354610278,1740595897819,-500.0,0.00054794,120]
[354610279,1740595897831,-888.97,0.00054794,120]
[354610280,1740595897841,-612.57,0.00054794,120]
[354610281,1740595897854,-2699.87,0.00054794,120]
[354610282,1740595897864,-151.0,0.00054794,120]
[354610283,1740595897873,-500.0,0.00054794,120]
[354610284,1740595897883,-1580.11,0.00054794,120]
[354610285,1740595897892,-500.0,0.00054794,120]
[354610287,1740595897902,-1704.51,0.00054794,120]
[354610288,1740595897911,-151.0,0.00054794,120]
[354610290,1740595897921,-254.428632,0.00054794,120]
[354610292,1740595897931,-254.42864,0.00054794,120]
[354610294,1740595897941,-500.0,0.00054794,120]
[354610296,1740595897954,-788.27,0.00054794,120]
[354610298,1740595897965,-1099.83,0.00054794,120]
[354610300,1740595897975,-1902.4,0.00054794,120]
[354610302,1740595897987,-878.04,0.00054794,120]
[354610304,1740595897998,-878.04,0.00054794,120]
[354610306,1740595898009,-878.04,0.00054794,120]
[354610308,1740595898020,-878.04,0.00054794,120]
[354610310,1740595898030,-878.04,0.00054794,120]
[354610312,1740595898040,-878.04,0.00054794,120]
[354610314,1740595898051,-878.04,0.00054794,120]
[354610316,1740595898062,-878.04,0.00054794,120]
[354610318,1740595898071,-878.04,0.00054794,120]
[354610320,1740595898081,-878.04,0.00054794,120]
[354610322,1740595898092,-878.04,0.00054794,120]
[354610324,1740595898105,-500.0,0.00054794,120]
[354610326,1740595898116,-500.0,0.00054794,120]
[354610328,1740595898126,-500.0,0.00054794,120]
[354610330,1740595898135,-500.0,0.00054794,120]
[354610332,1740595898145,-530.15492975,0.00054794,120]
[354610334,1740595898155,-500.0,0.00054794,120]
[354610336,1740595898164,-500.0,0.00054794,120]
[354610338,1740595898174,-500.0,0.00054794,120]
[354610340,1740595898183,-500.0,0.00054794,120]
[354610342,1740595898192,-500.0,0.00054794,120]
[354610344,1740595898202,-500.0,0.00054794,120]
[354610346,1740595898212,-500.0,0.00054794,120]
[354610348,1740595898221,-500.0,0.00054794,120]
[354610350,1740595898231,-500.0,0.00054794,120]
[354610352,1740595898241,-500.0,0.00054794,120]
[354610354,1740595898251,-500.0,0.00054794,120]
[354610356,1740595898261,-500.0,0.00054794,120]
[354610358,1740595898271,-500.0,0.00054794,120]
[354610360,1740595898280,-500.0,0.00054794,120]
[354610362,1740595898289,-500.0,0.00054794,120]
[354610364,1740595898299,-504.65490974,0.00054794,120]
[354610366,1740595898308,-1372.49,0.00054794,120]
[354610368,1740595898324,-2000.0,0.00054794,120]
[354610370,1740595898342,-1025.52,0.00054794,120]
[354610372,1740595898365,-500.0,0.00054794,120]
[354610374,1740595898375,-354.7588931,0.00054794,120]
[354610376,1740595898386,-2314.27,0.00054794,120]
[354610378,1740595898398,-822.39,0.00054794,120]
[354610380,1740595898408,-1486.63,0.00054794,120]
[354610382,1740595898419,-901.59,0.00054794,120]
[354610384,1740595898429,-500.0,0.00054794,120]
[354610386,1740595898439,-1677.06,0.00054794,120]
[354610388,1740595898450,-1205.34,0.00054794,120]
[354610390,1740595898461,-500.0,0.00054794,120]
[354610392,1740595898471,-500.0,0.00054794,120]
[354610394,1740595898482,-2294.05,0.00054794,120]
[354610396,1740595898493,-500.0,0.00054794,120]
[354610398,1740595898504,-1120.61,0.00054794,120]
[354610400,1740595898515,-604.64,0.00054794,120]
[354610402,1740595898526,-500.0,0.00054794,120]
[354610404,1740595898537,-1074.36,0.00054794,120]
[354610406,1740595898547,-500.0,0.00054794,120]
[354610407,1740595898558,-527.7,0.00054794,120]
[354610409,1740595898567,-806.28,0.00054794,120]
[354610411,1740595898577,-1834.97,0.00054794,120]
[354610413,1740595898587,-621.72578956,0.00054794,120]
[354610416,1740595898599,-500.0,0.00054794,120]
[354610418,1740595898608,-841.31,0.00054794,120]
[354610419,1740595898618,-1149.59,0.00054794,120]
[354610421,1740595898628,-500.0,0.00054794,120]
[354610423,1740595898638,-500.0,0.00054794,120]
[354610425,1740595898647,-500.0,0.00054794,120]
[354610427,1740595898660,-504.48,0.00054794,120]
[354610430,1740595898670,-500.0,0.00054794,120]
[354610431,1740595898680,-610.98,0.00054794,120]
[354610433,1740595898689,-500.0,0.00054794,120]
[354610435,1740595898699,-500.0,0.00054794,120]
[354610437,1740595898708,-919.11,0.00054794,120]
[354610439,1740595898718,-1139.22,0.00054794,120]
[354610442,1740595898728,-1427.81,0.00054794,120]
[354610443,1740595898737,-3966.28,0.00054794,120]
[354610458,1740595898877,-500.0,0.00054794,21]
[354610460,1740595898887,-1179.25,0.00054794,120]
[354610462,1740595898897,-643.49,0.00054794,120]
[354610464,1740595898907,-9738.58,0.00054794,120]
[354610466,1740595898917,-553.3441229,0.00054794,120]
[354610468,1740595898927,-801.82,0.00054794,120]
[354610470,1740595898937,-500.0,0.00054794,120]
[354610472,1740595898950,-911.86,0.00054794,120]
[354610474,1740595898960,-500.0,0.00054794,120]
[354610476,1740595898971,-552.77,0.00054794,120]
[354610478,1740595898982,-11052.45,0.00054794,120]
[354610480,1740595898996,-500.05,0.00054794,120]
[354610482,1740595899007,-500.0,0.00054794,120]
[354610484,1740595899017,-587.37,0.00054794,120]
[354610486,1740595899027,-517.75,0.00054794,120]
[354610488,1740595899039,-3684.76,0.00054794,120]
[354610490,1740595899049,-3499.84,0.00054794,120]
[354610491,1740595899059,-1015.05,0.00054794,120]
[354610494,1740595899071,-13581.8,0.00054794,120]
[354610496,1740595899080,-1570.34,0.00054794,120]
[354610497,1740595899090,-15292.47,0.00054794,120]
[354610500,1740595899103,-500.0,0.00054794,120]
[354610501,1740595899113,-500.0,0.00054794,120]
[354610503,1740595899123,-500.0,0.00054794,120]
[354610505,1740595899132,-1020.31,0.00054794,120]
[354610507,1740595899143,-690.39,0.00054794,120]
[354610510,1740595899153,-3105.4,0.00054794,120]
[354610511,1740595899163,-834.44,0.00054794,30]
[354610514,1740595899173,-2309.16,0.00054794,120]
[354610515,1740595899182,-10799.99,0.00054794,120]
[354610517,1740595899192,-594.206144,0.00054794,120]
[354610519,1740595899202,-500.0,0.00054794,120]
[354610521,1740595899212,-850.01,0.00054794,120]
[354610523,1740595899221,-500.0,0.00054794,120]
[354610525,1740595899231,-594.206154,0.00054794,120]
[354610527,1740595899241,-4233.08,0.00054794,120]
[354610530,1740595899257,-4180.32,0.00054794,120]
[354610533,1740595899273,-462.552748,0.00054794,120]
[354610535,1740595899283,-2800.4,0.00054794,120]
[354610537,1740595899294,-583.3,0.00054794,120]
[354610539,1740595899304,-2084.49,0.00054794,120]
[354610541,1740595899314,-2951.73,0.00054794,120]
[354610543,1740595899324,-2431.59,0.00054794,120]
[354610545,1740595899334,-462.552744,0.00054794,120]
[354610547,1740595899344,-1918.79,0.00054794,120]
[354610549,1740595899357,-1679.17,0.00054794,120]
[354610551,1740595899367,-514.65,0.00054794,120]
[354610553,1740595899378,-2627.04,0.00054794,120]
[354610555,1740595899388,-1409.36,0.00054794,120]
[354610557,1740595899398,-785.21,0.00054794,120]
[354610559,1740595899408,-834.81,0.00054794,120]
[354610561,1740595899419,-3016.52,0.00054794,120]
[354610563,1740595899428,-684.79,0.00054794,120]
[354610565,1740595899438,-2867.38,0.00054794,120]
[354610568,1740595899448,-928.1,0.00054794,120]
[354610570,1740595899458,-511.43,0.00054794,120]
[354610572,1740595899468,-163172.77,0.00054794,7]
[354610574,1740595899479,-567.25,0.00054794,120]
[354610576,1740595899489,-4605.54,0.00054794,120]
[354610578,1740595899499,-884.36,0.00054794,120]
[354610580,1740595899508,-573.56,0.00054794,120]
[354610582,1740595899519,-1964.79,0.00054794,120]
[354610584,1740595899530,-29115.5,0.00054794,120]
[354610586,1740595899540,-644.01,0.00054794,120]
[354610588,1740595899550,-1853.52,0.00054794,120]
[354610590,1740595899560,-500.0,0.00054794,120]
[354610592,1740595899570,-627.73,0.00054794,120]
[354610595,1740595899581,-1150.38,0.00054794,120]
[354610597,1740595899591,-8691.74,0.00054794,120]
[354610599,1740595899603,-820.33,0.00054794,120]
[354610601,1740595899613,-1232.27,0.00054794,120]
[354610603,1740595899624,-8198.21,0.00054794,120]
[354610605,1740595899634,-1218.92,0.00054794,120]
[354610607,1740595899644,-1991.01,0.00054794,120]
[354610609,1740595899654,-200.0,0.00054794,7]
[354610611,1740595899664,-820.98,0.00054794,120]
[354610613,1740595899674,-555.9,0.00054794,120]
[354610615,1740595899684,-35881.26,0.00054794,120]
[354610617,1740595899693,-1000.0,0.00054794,2]
[354610619,1740595899703,-2923.8,0.00054794,120]
[354610621,1740595899713,-949.77,0.00054794,120]
[354610623,1740595899723,-500.0,0.00054794,120]
[354610625,1740595899733,-14356.2,0.00054794,120]
[354610627,1740595899742,-689.35,0.00054794,120]
[354610629,1740595899752,-853.36,0.00054794,120]
[354610631,1740595899762,-4865.11,0.00054794,120]
[354610633,1740595899771,-2475.11,0.00054794,120]
[354610635,1740595899781,-2671.56,0.00054794,120]
[354610637,1740595899791,-5089.13,0.00054794,120]
[354610639,1740595899802,-514.99,0.00054794,120]
[354610642,1740595899811,-44424.48,0.00054794,6]
[354610644,1740595899821,-520.61,0.00054794,120]
[354610646,1740595899831,-1173.4,0.00054794,120]
[354610648,1740595899842,-500.0,0.00054794,120]
[354610649,1740595899855,-3489.83,0.00054794,120]
[354610652,1740595899866,-1066.43,0.00054794,120]
[354610654,1740595899876,-1957.38,0.00054794,120]
[354610656,1740595899888,-500.0,0.00054794,120]
[354610658,1740595899899,-2424.79,0.00054794,120]
[354610660,1740595899909,-21424.0,0.00054794,120]
[354610662,1740595899919,-519.69,0.00054794,120]
[354610664,1740595899930,-526.05,0.00054794,120]
[354610666,1740595899940,-1666.71,0.00054794,120]
[354610668,1740595899954,-3965.85,0.00054794,120]
[354610670,1740595899964,-500.0,0.00054794,120]
[354610672,1740595899974,-788.51,0.00054794,120]
[354610674,1740595899987,-1619.69,0.00054794,120]
[354610676,1740595899998,-1722.02,0.00054794,120]
[354610678,1740595900009,-4778.1,0.00054794,120]
[354610680,1740595900018,-2593.09,0.00054794,120]
[354610682,1740595900028,-1690.26,0.00054794,120]
[354610684,1740595900039,-812.11,0.00054794,120]
[354610687,1740595900049,-710.16,0.00054794,120]
[354610689,1740595900060,-1536.25,0.00054794,120]
[354610691,1740595900071,-626.19,0.00054794,120]
[354610693,1740595900081,-541.13,0.00054794,120]
[354610695,1740595900091,-512.95,0.00054794,120]
[354610697,1740595900103,-1851.36,0.00054794,120]
[354610699,1740595900113,-662.82,0.00054794,120]
[354610701,1740595900123,-10264.39,0.00054794,120]
[354610703,1740595900133,-810.19,0.00054794,120]
[354610705,1740595900143,-991.77,0.00054794,120]
[354610706,1740595900152,-3331.35,0.00054794,120]
[354610707,1740595900162,-5881.5,0.00054794,120]
[354610708,1740595900172,-1213.93,0.00054794,120]
[354610709,1740595900182,-2374.13,0.00054794,120]
[354610710,1740595900192,-2465.59,0.00054794,120]
[354610711,1740595900201,-782.08,0.00054794,120]
[354610712,1740595900211,-500.0,0.00054794,120]
[354610713,1740595900220,-500.0,0.00054794,120]
[354610714,1740595900230,-1294.2,0.00054794,120]
[354610715,1740595900239,-7797.57,0.00054794,120]
[354610716,1740595900249,-1000.0,0.00054795,120]
[354610717,1740595900260,-1200.35,0.00054795,120]
[354610718,1740595900270,-1134.0,0.00054795,120]
[354610719,1740595900281,-1183.224508,0.00054795,15]
[354610720,1740595900293,-1183.224508,0.00054795,15]
[354610721,1740595900304,-1183.224508,0.00054795,15]
[354610722,1740595900314,-1183.224508,0.00054795,15]
[354610723,1740595900323,-1183.224508,0.00054795,15]
[354610724,1740595900337,-1183.224508,0.00054795,15]
[354610725,1740595900346,-1183.224508,0.00054795,15]
[354610726,1740595900359,-1183.224508,0.00054795,15]
[354610727,1740595900369,-1183.224508,0.00054795,15]
[354610728,1740595900378,-1183.224508,0.00054795,15]
[354610729,1740595900388,-1183.224508,0.00054795,15]
[354610730,1740595900398,-1183.224508,0.00054795,15]
[354610731,1740595900409,-1183.224508,0.00054795,15]
[354610732,1740595900421,-1183.224508,0.00054795,15]
[354610733,1740595900431,-1183.224508,0.00054795,15]
[354610734,1740595900443,-1183.224508,0.00054795,15]
[354610736,1740595900457,-1183.224508,0.00054795,15]
[354610738,1740595900471,-1183.224508,0.00054795,15]
[354610740,1740595900488,-1183.224508,0.00054795,15]
[354610742,1740595900508,-1183.224513,0.00054795,15]
[354610744,1740595900518,-150.32,0.00054795,30]
[354610746,1740595900528,-1000.0,0.000548,120]
[354610748,1740595900537,-2257.61,0.000548,2]
[354610750,1740595900548,-1989.0,0.00054898,120]
[354610752,1740595900559,-1989.0,0.00054898,120]
[354610755,1740595900575,-1989.0,0.00054898,120]
[354610756,1740595900590,-1989.0,0.00054898,120]
[354610758,1740595900602,-1989.0,0.00054898,120]
[354610761,1740595900614,-881.0,0.00054898,120]
[354610762,1740595900627,-10000.0,0.00055,55]
[354610764,1740595900641,-1000.0,0.00055,120]
[354610766,1740595900652,-752.0,0.00055,120]
[354610768,1740595900667,-1000.0,0.00055,120]
[354610770,1740595900681,-1000.0,0.00055,120]